[Event "ChessKid Cup Div-III 2023"]
[Site "Online"]
[Date "2023.05.22"]
[Round "1.1"]
[White "Iniyan, P."]
[Black "Kamsky, Gata"]
[Result "1/2-1/2"]
[ECO "E38"]
[WhiteElo "2525"]
[BlackElo "2665"]
[Annotator "TA"]
[PlyCount "103"]
[EventDate "2023.05.21"]
[EventType "k.o."]
[EventCountry "NET"]
[SourceTitle "playchess.com"]
[Source "ChessBase"]
[SourceQuality "1"]
[TimeControl "900+3"]

{[%evp 11,103,35,45,25,37,23,29,29,31,27,29,23,25,18,34,-44,-45,-100,-98,-105,-103,-103,-103,-98,-96,-119,-98,-143,-97,-108,-64,-103,-124,-125,10,11,8,-56,-47,-64,-16,-30,-31,-29,0,0,0,0,0,0,0,0,23,19,19,21,23,14,16,18,20,20,21,3,25,25,25,25,42,0,0,0,0,0,0,0,0,0,0,0,0,0,0,0,0,0,0,0,0,0,0,0,0,0]} 1. d4 {[%emt 0:00:09]} Nf6 {[%emt 0:00:09]} 2. c4 {[%emt 0:00:01]} e6 {[%emt 0:00:03]} 3. Nc3 {[%emt 0:00:02]} Bb4 {[%emt 0:00:02]} 4. Qc2 {[%emt 0:00:05]} c5 {[%emt 0:00:04]} 5. dxc5 {[%emt 0:00:13]} Qc7 {[%emt 0:00:04]} 6. a3 {[%emt 0:00:06]} Bxc5 {[%emt 0:00:02]} 7. e3 {[%emt 0:00:03] E38: Nimzo-Indian: Classical: 4...c5.} a6 {[%emt 0:00:07]} 8. b4 {[%emt 0:00:02]} Be7 {[%emt 0:00:02]} 9. Nf3 {[%emt 0:00:02] White has an edge.} b6 {[%emt 0:00:02]} 10. Bd3 {[%emt 0:00:07]} Bb7 {[%emt 0:00:05]} 11. e4 {[%emt 0:00:01]} d6 {[%emt 0:00:02]} 12. O-O {[%emt 0:00:03]} Nbd7 {[%emt 0:00:02][%cal Bb8d7,Bd7e5,Be5d3][%mdl 32] [#]} 13. Nd4 $146 {[%emt 0:00:21]} (13. h3 $14) ({Predecessor:} 13. Bf4 O-O 14. Rac1 Rac8 15. Rfd1 Qb8 16. Qe2 Rfe8 17. Bb1 Nh5 18. Be3 Nhf6 19. Bf4 {½-½ Kraev,A (2353)-Maletin,P (2429) RUS-ch U20 Samara 2004 (3)}) 13... Ne5 $15 {[%emt 0:00:16]} 14. f4 {[%emt 0:01:07]} ({Better is} 14. Bg5 $15) 14... Nxd3 $17 {[%emt 0:00:04]} 15. Qxd3 {[%emt 0:00:01]} Rc8 {[%emt 0:00:04]} 16. Bb2 {[%emt 0:01:03]} Qxc4 {[%emt 0:00:06]} 17. Qe3 {[%emt 0:00:01]} Qc7 {[%emt 0:00:43]} 18. Rac1 {[%emt 0:00:34][%cal Oc3d5]} Qd7 {[%emt 0:00:18]} 19. Nf3 {[%emt 0:01:09] [#]} Qd8 {[%emt 0:03:47]} (19... b5 $142 $1 20. h3 O-O) 20. e5 {[%emt 0:00:58]} dxe5 {[%emt 0:00:06]} 21. Nxe5 {[%emt 0:02:42]} O-O {[%emt 0:04:15]} 22. Rfd1 {[%emt 0:00:18]} Nd5 {[%emt 0:00:02]} ({Black should try} 22... Bd6 $17 23. g3 Re8) 23. Nxd5 $11 {[%emt 0:00:04]} exd5 {[%emt 0:00:03]} 24. Ng4 {[%emt 0:02:03]} (24. Rxc8 $11 Qxc8 25. Qxb6) 24... Rxc1 {[%emt 0:00:23]} 25. Rxc1 {[%emt 0:00:04][%cal Og4h6] [#]} d4 {[%emt 0:00:58]} 26. Bxd4 {[%emt 0:00:14]} Qd5 {[%emt 0:00:08][%csl Gb7][%cal Rd5g2]} 27. Rc2 {[%emt 0:00:02]} Bd8 {[%emt 0:00:49]} 28. Qe5 {[%emt 0:01:10][%csl Gd4][%cal Re5g7]} f6 {[%emt 0:00:13]} 29. Qxd5+ {[%emt 0:00:04]} Bxd5 {[%emt 0:00:01]} 30. Ne3 {[%emt 0:00:06]} Be4 {[%emt 0:00:17]} 31. Rc8 {[%emt 0:00:15]} Be7 {[%emt 0:00:58]} 32. Rxf8+ {[%emt 0:00:05]} Kxf8 {[%emt 0:00:04]} 33. Bxb6 {[%emt 0:00:02][%mdl 4096] Endgame KBB-KBN} Kf7 {[%emt 0:00:05]} 34. Kf2 {[%emt 0:00:12]} Ke6 {[%emt 0:00:02]} 35. g4 {[%emt 0:00:42]} g6 {[%emt 0:00:04]} 36. Nd1 {[%emt 0:01:08]} Bd6 {[%emt 0:00:11]} 37. Ke3 {[%emt 0:00:02]} (37. Nc3 $5 {[%cal Rc3e4]} Bc6 38. Ke3 $11) 37... Bg2 {[%emt 0:00:11]} 38. Nc3 {[%emt 0:00:41]} g5 {[%emt 0:00:31]} 39. Ne2 {[%emt 0:00:01]} Bf1 {[%emt 0:00:17]} 40. f5+ {[%emt 0:00:22]} Kf7 $1 {[%emt 0:00:16] The position is equal.} 41. Ng3 {[%emt 0:00:16]} Bxg3 {[%emt 0:00:12]} 42. hxg3 {[%emt 0:00:01] KB-KB} Bb5 $1 {[%emt 0:00:02]} 43. Bd4 {[%emt 0:00:02]} Ba4 {[%emt 0:00:02]} 44. Kd2 {[%emt 0:00:05]} Ke7 {[%emt 0:00:05]} 45. Bc3 {[%emt 0:00:01]} Kf7 {[%emt 0:00:02]} 46. Bd4 {[%emt 0:00:01]} Ke7 {[%emt 0:00:01]} 47. Bb2 {[%emt 0:00:01]} Kf7 {[%emt 0:00:01]} 48. Ke2 {[%emt 0:00:01]} Ke7 {[%emt 0:00:01]} 49. Bc3 {[%emt 0:00:06]} Kf7 {[%emt 0:00:02]} 50. Bb2 {[%emt 0:00:00]} Ke7 {[%emt 0:00:01]} 51. Bc3 {[%emt 0:00:01]} Kf7 {[%emt 0:00:01]} 52. Bb2 {[%emt 0:00:00] Weighted Error Value: White=0.15 (very precise) /Black=0.14 (very precise)} 1/2-1/2

[Event "ChessKid Cup Div-III 2023"]
[Site "Online"]
[Date "2023.05.22"]
[Round "1.1"]
[White "Harshavardhan G B"]
[Black "Bachmann, Axel"]
[Result "1-0"]
[ECO "E14"]
[WhiteElo "2408"]
[BlackElo "2604"]
[Annotator "TA"]
[PlyCount "147"]
[EventDate "2023.05.21"]
[EventType "k.o."]
[EventCountry "NET"]
[SourceTitle "playchess.com"]
[Source "ChessBase"]
[SourceQuality "1"]
[TimeControl "900+3"]

{[%evp 13,147,11,20,0,0,0,0,0,0,0,0,0,0,0,0,0,0,0,33,20,13,-29,-20,-29,-18,-24,-14,-22,51,-27,-26,-84,-6,-59,-48,-70,-72,-155,-18,-25,0,-16,-7,-43,-42,-268,-265,-264,0,0,0,0,0,0,0,0,0,-12,0,0,0,0,0,0,0,0,39,0,0,0,133,142,124,131,302,321,289,287,575,567,551,487,568,522,565,550,513,482,414,388,384,352,358,332,356,145,173,163,154,146,137,86,162,8,8,8,8,8,8,8,2343,2379,2270,2145,2213,1720,3330,1006,6159,1310,1071,893,2630,2437,1858,1408,10380,9691,6516,6516,29984,29985,29985,29986,29986,29987]} 1. d4 {[%emt 0:00:13]} Nf6 {[%emt 0:00:11]} 2. c4 {[%emt 0:00:02]} e6 {[%emt 0:00:03]} 3. Nf3 {[%emt 0:00:07]} Bb4+ {[%emt 0:00:06]} 4. Nbd2 {[%emt 0:00:04]} b6 {[%emt 0:00:12]} 5. e3 {[%emt 0:00:05]} Bb7 {[%emt 0:00:03]} 6. Bd3 {[%emt 0:00:03]} O-O {[%emt 0:00:06]} 7. O-O {[%emt 0:00:03]} d5 {[%emt 0:00:06]} 8. cxd5 {[%emt 0:00:09] E14: Queen's Indian: Classical Variation (4 e3).} exd5 {[%emt 0:00:02]} 9. Ne5 {[%emt 0:00:05]} Bd6 {[%emt 0:00:47]} 10. f4 {[%emt 0:00:08] The position is equal.} c5 {[%emt 0:00:03]} 11. b3 {[%emt 0:00:13]} cxd4 {[%emt 0:00:23]} 12. exd4 {[%emt 0:00:03] [#]} Ba6 $146 {[%emt 0:01:47]} ({Predecessor:} 12... Nc6 13. Bb2 Rc8 14. Qf3 Rc7 15. a3 Qc8 16. b4 Rd8 17. Rae1 Bf8 18. Re3 g6 {1-0 Stalmach,R (2306)-Macicek,J (2243) Pobeskydy op 41st 2022 (2)}) 13. Qe2 {[%emt 0:01:35]} Bxd3 {[%emt 0:00:03]} 14. Qxd3 {[%emt 0:00:03]} Qc8 {[%emt 0:00:26]} 15. Bb2 {[%emt 0:00:08]} Qa6 {[%emt 0:00:14]} 16. Qf3 {[%emt 0:00:20]} Bb4 {[%emt 0:01:03]} 17. Bc3 {[%emt 0:00:58]} Bxc3 {[%emt 0:00:08]} 18. Qxc3 {[%emt 0:00:02]} Rc8 {[%emt 0:00:01]} 19. Qh3 {[%emt 0:00:02]} Nc6 {[%emt 0:00:06]} 20. Ndf3 {[%emt 0:00:03]} h6 {[%emt 0:02:35] Prevents Ng5} (20... Rc7 $11) 21. Rfe1 {[%emt 0:00:43]} (21. Nxf7 $14 Kxf7 22. Ne5+ Kg8 23. Qe6+ Kh8 24. Nxc6) 21... Rc7 $11 {[%emt 0:01:01]} 22. a3 {[%emt 0:04:19] Wards off Nb4} (22. Ng4 $11 Nxg4 23. Qxg4) 22... Rac8 {[%emt 0:00:15]} (22... Qc8 $17 23. Qxc8+ Raxc8) 23. b4 {[%emt 0:00:04]} (23. Ng4 $1 $11 Nxg4 24. Qxg4) 23... Ne4 $15 {[%emt 0:00:43]} 24. Nxc6 {[%emt 0:01:05]} Rxc6 {[%emt 0:00:00]} 25. Qf5 {[%emt 0:00:03]} (25. Ne5 $142 R6c7 26. Qf5) 25... Nf6 {[%emt 0:00:33]} (25... Qc4 $17 {...R8c7 is the strong threat.} 26. Rf1 R8c7) 26. Ne5 $11 {[%emt 0:00:37]} Rc2 {[%emt 0:00:56]} 27. a4 {[%emt 0:01:40]} (27. Nxf7 $2 Kxf7 28. Qe6+ (28. b5 $2 Qxb5 29. Rab1 Qc4 $19) 28... Kg6 $19) (27. g4 $5 {[%cal Rg4g5]} Qb7 28. g5 $11) 27... b5 {[%emt 0:00:40]} (27... Qb7 {is interesting.} 28. b5 Ne4 29. Rad1 g6) 28. Nd3 {[%emt 0:00:07]} (28. g4 $5 {[%cal Rg4g5]} R8c7 29. g5 hxg5 30. axb5 $11) 28... g6 {[%emt 0:00:49]} (28... bxa4 $2 29. Nc5 R2xc5 30. bxc5 $18) 29. Qh3 {[%emt 0:01:01]} ({Only move:} 29. axb5 $15 Qb6 30. Qe5) 29... R8c3 $19 {[%emt 0:00:48]} (29... bxa4 30. Nc5 R8xc5 31. bxc5 $14) 30. a5 {[%emt 0:01:08]} Qc6 $2 {[%emt 0:01:10]} ({Black should play} 30... Ne4 $19 {White must now prevent ...Qf6.} 31. Rac1 Rxc1 32. Rxc1 Qc6 33. Rxc3 Qxc3) 31. Ne5 $1 $11 {[%emt 0:00:32]} Rxh3 {[%emt 0:00:14]} 32. Nxc6 {[%emt 0:00:03]} Rd3 {[%emt 0:00:00]} 33. Rac1 {[%emt 0:00:04]} Rb2 {[%emt 0:00:22] Hoping for ...Rdd2.} 34. Red1 {[%emt 0:00:04]} Ra3 {[%emt 0:00:18]} 35. Ra1 {[%emt 0:00:06]} Re3 {[%emt 0:00:05]} 36. Re1 {[%emt 0:00:05]} Rd3 {[%emt 0:00:01]} 37. Red1 {[%emt 0:00:05]} Rxd1+ {[%emt 0:00:05]} 38. Rxd1 {[%emt 0:00:01][%mdl 4096] Endgame KRN-KRN} a6 {[%emt 0:00:00]} 39. Ra1 {[%emt 0:00:13]} Ng4 {[%emt 0:00:08]} 40. Ne7+ {[%emt 0:00:04]} (40. Nb8 $5 {[%cal Rb8a6]}) 40... Kg7 {[%emt 0:00:05]} 41. Nxd5 {[%emt 0:00:01]} Nf6 {[%emt 0:00:19]} (41... Rc2 $1 $11 {remains equal.}) 42. Nc7 $16 {[%emt 0:00:03]} Rxb4 {[%emt 0:00:06]} 43. Nxa6 {[%emt 0:00:01]} Ra4 {[%emt 0:00:00]} (43... Rxd4 $16 44. Nc7 Nd5 45. Nxb5 (45. Nxd5 Rxd5 46. g4 b4 $11) 45... Rb4) 44. Rxa4 $18 {[%emt 0:00:01]} bxa4 {[%emt 0:00:01] KN-KN} 45. Nb4 {[%emt 0:00:01] Inhibits Nd5. aiming for a6.} a3 $2 {[%emt 0:00:02]} (45... Ne8 {was called for.} 46. Kf2 Kf6) 46. a6 {[%emt 0:00:04][%cal Ba5a6,Ba6a7][%mdl 32] a7 would be deadly.} Nd5 {[%emt 0:00:00]} 47. a7 {[%emt 0:00:04]} (47. Nxd5 $2 {is the wrong capture.} a2 48. Kf2 a1=Q $19) 47... Nb6 {[%emt 0:00:01]} 48. Kf2 {[%emt 0:00:03]} Kf8 {[%emt 0:00:00]} 49. Ke2 {[%emt 0:00:21]} Ke8 {[%emt 0:00:02]} 50. Kd3 {[%emt 0:00:01]} Kd7 {[%emt 0:00:00]} 51. Kc3 {[%emt 0:00:02]} Kc7 {[%emt 0:00:01]} 52. Kb3 {[%emt 0:00:04][%cal Ob4d5] Strongly threatening Nd5+!} Kb7 {[%emt 0:00:02]} 53. Kxa3 {[%emt 0:00:03]} Kxa7 {[%emt 0:00:01]} 54. Kb3 {[%emt 0:00:01]} (54. Nc6+ $18 Ka6 55. Ne5) 54... Kb7 $16 {[%emt 0:00:01]} 55. Kc3 {[%emt 0:00:07]} Kc7 {[%emt 0:00:05]} 56. Kd3 {[%emt 0:00:04]} Kd6 {[%emt 0:00:02]} 57. g4 {[%emt 0:00:02]} ({Better is} 57. Nc2) 57... f5 {[%emt 0:00:10] [#]} (57... Ke6 $16) 58. gxf5 $2 {[%emt 0:00:02]} (58. g5 $1 $18 {[%cal Rg5h6]} h5 59. Ke3) 58... gxf5 $11 {[%emt 0:00:00]} 59. h3 {[%emt 0:00:01]} Ke6 {[%emt 0:00:11]} 60. Ke2 {[%emt 0:00:01]} Kd6 {[%emt 0:00:07]} 61. Nc2 {[%emt 0:00:02] And now Ne3 would win.} Kd5 $2 {[%emt 0:00:04][%mdl 8192]} (61... Nd5 $11) 62. Kd3 $18 {[%emt 0:00:01]} Ke6 {[%emt 0:00:01]} 63. Ne3 {[%emt 0:00:01]} Nd7 {[%emt 0:00:04]} 64. Kc4 {[%emt 0:00:03]} Nf6 {[%emt 0:00:06]} 65. Kc5 {[%emt 0:00:04]} (65. d5+ $142 Kd7 66. Kd4) 65... Nd7+ {[%emt 0:00:01]} 66. Kb5 {[%emt 0:00:08]} (66. Kc6 $142 Nb8+ 67. Kb7) 66... Kd6 {[%emt 0:00:04]} 67. Kc4 {[%emt 0:00:08]} (67. Nxf5+ Kd5 $11) 67... Ke6 {[%emt 0:00:03]} 68. d5+ {[%emt 0:00:03][%cal Bd4d5,Bd5d6][%mdl 32]} Kf6 {[%emt 0:00:01]} 69. Kb5 {[%emt 0:00:00]} Nf8 {[%emt 0:00:11]} 70. Kc6 {[%emt 0:00:04] Threatening mate with d6.} Ng6 {[%emt 0:00:00]} 71. d6 {[%emt 0:00:11]} Nxf4 {[%emt 0:00:02]} 72. Nd5+ {[%emt 0:00:01] White mates.} Nxd5 {[%emt 0:00:00]} 73. Kxd5 {[%emt 0:00:00]} f4 {[%emt 0:00:01] [#]} 74. Kc6 $1 {[%emt 0:00:01] Quite a comeback for White.   Weighted Error Value: White=0.24 (precise) /Black=0.29 (precise)} 1-0

[Event "ChessKid Cup Div-III 2023"]
[Site "Online"]
[Date "2023.05.22"]
[Round "1.2"]
[White "Harikrishna, Pentala"]
[Black "Iturrizaga Bonelli, Eduardo"]
[Result "1/2-1/2"]
[ECO "B38"]
[WhiteElo "2704"]
[BlackElo "2637"]
[Annotator "TA"]
[PlyCount "109"]
[EventDate "2023.05.21"]
[EventType "k.o."]
[EventCountry "NET"]
[SourceTitle "playchess.com"]
[Source "ChessBase"]
[SourceQuality "1"]
[TimeControl "900+3"]

{[%evp 18,109,43,37,50,51,71,43,47,10,12,-22,0,0,0,-10,0,-33,-43,-31,-18,-35,-22,-21,-23,-15,-25,-20,-15,-6,0,0,0,0,0,0,0,0,0,0,108,90,815,263,413,0,394,72,93,0,0,-214,-177,-1222,-1103,-12834,-12834,-12834,-12835,-12835,-1025,-1249,-1344,-1249,-1285,-1095,-1099,-963,-956,-694,-691,-12839,-384,-12836,-381,-313,0,0,0,0,0,0,0,0,0,0,0,0,0,0,0,0,0,0]} 1. c4 {[%emt 0:00:03]} c5 {[%emt 0:00:10]} 2. Nf3 {[%emt 0:00:03]} Nc6 {[%emt 0:00:01]} 3. Nc3 {[%emt 0:00:02]} Nf6 {[%emt 0:00:04]} 4. e4 {[%emt 0:00:14]} d6 {[%emt 0:00:08]} 5. d4 {[%emt 0:00:03]} cxd4 {[%emt 0:00:11]} 6. Nxd4 {[%emt 0:00:01]} g6 {[%emt 0:00:00]} 7. Be2 {[%emt 0:00:06]} Bg7 {[%emt 0:00:01]} 8. Be3 {[%emt 0:00:02]} O-O {[%emt 0:00:01]} 9. O-O {[%emt 0:00:02]} Bd7 {[%emt 0:00:01]} 10. Nc2 {[%emt 0:00:04]} Be6 {[%emt 0:00:01] B38: Sicilian: Maroczy Bind with 5...Bg7 and 7...0-0.} 11. Rc1 {[%emt 0:00:15]} Nd7 {[%emt 0:00:11] [#]} 12. Nd4 $146 {[%emt 0:00:19]} ({Predecessor:} 12. Qd2 a5 13. f3 a4 14. Na3 Qa5 15. f4 Nc5 16. Bf3 Nb4 17. Be2 Nxa2 18. Nxa2 Qxd2 19. Bxd2 {0-1 So,W (2765)-Iturrizaga Bonelli,E (2637) PRO League Stage rapid 2019 (10)}) 12... Nc5 {[%emt 0:00:19] White is slightly better.} 13. Nxc6 {[%emt 0:00:31]} bxc6 {[%emt 0:00:02]} 14. Bd4 {[%emt 0:00:07]} Qb6 {[%emt 0:00:34]} 15. Bxg7 {[%emt 0:00:51]} Kxg7 {[%emt 0:00:02]} 16. b3 {[%emt 0:00:02]} a5 {[%emt 0:00:05][%cal Oa5a4]} 17. Qd4+ {[%emt 0:00:24]} (17. Rb1 $5) 17... f6 {[%emt 0:00:03]} 18. Rb1 {[%emt 0:00:29]} Qb4 {[%emt 0:00:25]} 19. f4 {[%emt 0:00:28][%cal Oc3a4,Bf2f4,Bf4f5,Bf5g6][%mdl 32]} a4 {[%emt 0:00:10]} 20. Nxa4 {[%emt 0:01:32]} Nxa4 {[%emt 0:00:14]} 21. bxa4 {[%emt 0:00:03]} Qxa4 {[%emt 0:00:00]} 22. Rb7 {[%emt 0:00:02][%csl LRd6,LRe7]} Rf7 {[%emt 0:00:02]} 23. f5 {[%emt 0:00:29]} Bc8 {[%emt 0:02:28]} 24. fxg6 {[%emt 0:00:08] [#] Threatening mate with Rxe7.} Bxb7 {[%emt 0:00:02]} 25. gxf7 {[%emt 0:00:02][%cal Oe4e5]} c5 {[%emt 0:01:02]} 26. Qe3 {[%emt 0:02:42]} Qxa2 {[%emt 0:01:34]} 27. Qg3+ $1 {[%emt 0:01:17]} Kh8 {[%emt 0:00:24]} (27... Kxf7 $5 28. Bh5+ $8 Kf8 29. Rxf6+ exf6 30. Qxd6+ Kg8 31. Qe6+ Kg7 32. Qf7+ Kh6 33. Qxf6+ Kxh5 34. Qf7+ (34. Qf5+ Kh6 $11) 34... Kh6 35. Qf6+ Kh5 36. Qf7+ (36. Qf5+ Kh6 $11) 36... Kh6 37. Qf6+ Kh5 $11) 28. Qe3 {[%emt 0:01:57][%cal Oe3h6] [#] White threatens Qh6! and mate.} Rf8 {[%emt 0:03:52]} (28... Kg7 $1 $11) 29. Bh5 $16 {[%emt 0:00:04]} Qa8 $2 {[%emt 0:00:12][%mdl 8192]} (29... Kg7 $16) 30. Qc3 $2 {[%emt 0:01:02]} (30. Qh6) 30... Qd8 {[%emt 0:00:25]} (30... Kg7 {might work better.}) 31. Rf4 $2 {[%emt 0:00:14]} (31. Qc1 $18 {Strongly threatening Qh6.} Bc8 32. Qh6) 31... e5 $2 {[%emt 0:00:12][%mdl 8192]} (31... Bc8 $1 $11 {and Black stays safe.}) 32. Rg4 $2 {[%emt 0:00:06]} (32. Rf1 $18) 32... Bc8 {[%emt 0:00:14]} 33. Rh4 {[%emt 0:00:03] White has more active pieces.} (33. Rg3 $16 f5 34. exf5) 33... f5 $11 {[%emt 0:00:14]} 34. Qh3 {[%emt 0:01:03]} (34. Qg3 $11 Qa5 35. h3) 34... Qg5 $19 {[%emt 0:00:03]} 35. Bg4 $2 {[%emt 0:01:33]} (35. exf5 Bxf5 36. Qg3 Qxg3 37. hxg3) 35... Rxf7 {[%emt 0:00:16] ( -> ...Qc1+)} (35... fxg4 $2 36. Rxh7#) 36. Bxf5 {[%emt 0:00:06]} Bxf5 {[%emt 0:00:12]} 37. exf5 {[%emt 0:00:02][%mdl 4096] Endgame KQR-KQR} Qc1+ {[%emt 0:00:01]} 38. Kf2 {[%emt 0:00:02]} Rb7 {[%emt 0:00:11]} (38... Qd2+ $142 39. Kf3 Qd3+ 40. Kf2 Rxf5+ 41. Qxf5 Qxf5+ 42. Ke1 Qb1+ 43. Kd2 e4) 39. Re4 {[%emt 0:00:15]} Rb2+ {[%emt 0:00:52]} 40. Re2 {[%emt 0:00:01]} Qf4+ {[%emt 0:00:01]} 41. Qf3 {[%emt 0:00:01]} Qh4+ {[%emt 0:00:14]} 42. Qg3 {[%emt 0:00:01]} Rxe2+ {[%emt 0:01:08]} ({Not} 42... Qxc4 43. Rxb2 Qd4+ 44. Kf3 Qxb2 45. Qg5 $11) 43. Kxe2 {[%emt 0:00:00]} Qxc4+ {[%emt 0:00:01] KQ-KQ} 44. Qd3 {[%emt 0:00:18]} Qg4+ {[%emt 0:00:38]} (44... Qxd3+ 45. Kxd3 Kg7) 45. Kf2 $2 {[%emt 0:00:02]} (45. Kf1 Qf4+ 46. Ke1 Qxh2 47. Qd5 (47. Qxd6 $2 {loses.} Qg1+ 48. Ke2 Qxg2+ 49. Ke3 Qg5+ 50. Ke4 Qf4+ {[%mdl 64] Deflection} 51. Kd5 Qxf5 $19)) 45... Qf4+ $2 {[%emt 0:00:04]} (45... Qd4+ 46. Qxd4 exd4) 46. Ke2 {[%emt 0:00:01]} e4 $2 {[%emt 0:00:08]} (46... Qxh2 $19 47. Qd5 Qh5+ 48. Ke1 Qxf5 49. Qxd6 Qe4+ 50. Kf1 Qf4+ 51. Ke2 c4 52. Qd8+ Kg7 53. Qe7+ Kh6 54. Qe6+ Kh5 55. Qh3+ Kg6 56. Qe6+ Kg5 57. Qg8+ Kh6 58. Qe6+ Kh5 59. Qh3+ Kg5 60. Qxh7 Qg4+ 61. Kd2 Qd4+ 62. Ke2 Qg4+ 63. Kd2 Qd4+ 64. Ke2 Kf6 65. Qh8+ Ke7) 47. Qc3+ $11 {[%emt 0:00:01] The position is equal.} Kg8 {[%emt 0:00:02]} 48. Qf6 {[%emt 0:00:01]} Qg4+ {[%emt 0:00:02]} 49. Ke3 {[%emt 0:00:02]} Qxg2 {[%emt 0:00:07]} 50. Qe6+ {[%emt 0:00:03]} Kg7 {[%emt 0:00:01] ...Qf3+ is the strong threat.} 51. Qe7+ {[%emt 0:00:01]} Kh6 {[%emt 0:00:03] aiming for ...Qg5+.} 52. Qh4+ {[%emt 0:00:01]} Kg7 {[%emt 0:00:01] White must now prevent ...Qf3+.} 53. Qe7+ {[%emt 0:00:01]} Kg8 {[%emt 0:00:03] ...Qf3+ would be deadly.} 54. Qe8+ {[%emt 0:00:00]} Kg7 {[%emt 0:00:01] Hoping for ...Qf3+.} 55. Qe7+ {[%emt 0:00:01] White happily takes the draw.   Weighted Error Value: White=0.93/Black=0.58} 1/2-1/2

[Event "ChessKid Cup Div-III 2023"]
[Site "Online"]
[Date "2023.05.22"]
[Round "1.2"]
[White "Donchenko, Alexander"]
[Black "Yu, Yangyi"]
[Result "1/2-1/2"]
[ECO "D94"]
[WhiteElo "2669"]
[BlackElo "2729"]
[Annotator "TA"]
[PlyCount "98"]
[EventDate "2023.05.21"]
[EventType "k.o."]
[EventCountry "NET"]
[SourceTitle "playchess.com"]
[Source "ChessBase"]
[SourceQuality "1"]
[TimeControl "900+3"]

{[%evp 19,98,24,31,25,32,12,20,17,24,22,20,-14,37,38,47,47,48,45,72,37,39,39,43,43,43,43,43,16,15,6,8,6,16,18,14,4,12,0,0,0,0,0,4,0,4,0,24,24,24,0,0,0,0,0,0,0,0,0,0,0,0,0,0,0,0,0,0,0,0,0,0,-21,0,0,0,-124,0,0,0,-122,0]} 1. c4 {[%emt 0:00:03]} c6 {[%emt 0:00:11]} 2. Nf3 {[%emt 0:00:07]} d5 {[%emt 0:00:02]} 3. e3 {[%emt 0:00:15]} Nf6 {[%emt 0:00:08]} 4. Nc3 {[%emt 0:00:02]} g6 {[%emt 0:00:11]} 5. b3 {[%emt 0:00:20]} Bg7 {[%emt 0:00:03]} 6. Bb2 {[%emt 0:00:01]} O-O {[%emt 0:00:01]} 7. Be2 {[%emt 0:00:03]} b6 {[%emt 0:01:05]} 8. O-O {[%emt 0:00:06]} Bb7 {[%emt 0:00:01]} 9. d4 {[%emt 0:00:17]} Nbd7 {[%emt 0:00:08]} 10. cxd5 {[%emt 0:00:20]} cxd5 {[%emt 0:00:07]} 11. a4 {[%emt 0:00:07] D94: Grünfeld: 4 Nf3 Bg7 5 e3.} a6 {[%emt 0:00:04]} 12. Bd3 {[%emt 0:00:13]} Re8 {[%emt 0:00:54] [#]} 13. h3 $146 {[%emt 0:00:24] The position is equal.} ({Predecessor:} 13. Rc1 e6 14. Qe2 Ne4 15. Na2 Bf8 16. Rc2 b5 17. axb5 axb5 18. Nc3 Nxc3 19. Rxc3 {½-½ Ursente,M-Medunova,V (2191) Stare Mesto op 2004 (5)}) 13... Ne4 {[%emt 0:00:27]} 14. Qe2 {[%emt 0:01:32]} e5 {[%emt 0:03:23]} 15. dxe5 {[%emt 0:00:49]} Nxe5 {[%emt 0:00:05]} ({Better is} 15... Nec5 $11) 16. Nxe5 $14 {[%emt 0:00:06]} Bxe5 {[%emt 0:00:51]} 17. Nxe4 {[%emt 0:00:07]} dxe4 {[%emt 0:00:03]} 18. Bc4 {[%emt 0:00:01]} Qg5 {[%emt 0:00:22]} 19. Rad1 {[%emt 0:00:31]} Bxb2 $1 {[%emt 0:00:15]} 20. Qxb2 {[%emt 0:00:00] aiming for Rd7.} b5 {[%emt 0:00:02]} 21. Rd7 {[%emt 0:02:02][%csl LRb7,LRf7]} bxc4 {[%emt 0:00:28]} 22. Rxb7 {[%emt 0:00:02]} Rac8 {[%emt 0:00:30]} 23. Rc1 {[%emt 0:01:35]} cxb3 {[%emt 0:01:11]} 24. Rd1 {[%emt 0:00:39]} Red8 {[%emt 0:00:35]} 25. Qxb3 {[%emt 0:00:25]} Rxd1+ {[%emt 0:00:22]} 26. Qxd1 $11 {[%emt 0:00:00][%cal Ob7f7][%mdl 4096] Endgame Threatens to win with Rxf7! KQR-KQR} Qf6 {[%emt 0:00:06]} 27. Qb1 {[%emt 0:01:42]} Qc6 {[%emt 0:01:03]} 28. Rb8 {[%emt 0:00:53]} Rxb8 {[%emt 0:00:37]} 29. Qxb8+ {[%emt 0:00:00] KQ-KQ} Kg7 {[%emt 0:00:01]} 30. Qe5+ {[%emt 0:00:02]} Kf8 {[%emt 0:00:50]} 31. a5 {[%emt 0:00:07]} h5 {[%emt 0:00:20]} 32. Kh2 {[%emt 0:00:04]} f6 {[%emt 0:00:16]} 33. Qb8+ {[%emt 0:00:23]} Ke7 {[%emt 0:00:01]} 34. Kg3 {[%emt 0:00:36]} g5 {[%emt 0:00:09]} 35. Qa7+ {[%emt 0:00:31]} Ke6 {[%emt 0:00:12]} 36. Kh2 {[%emt 0:00:13]} Qd6+ {[%emt 0:00:13]} 37. g3 {[%emt 0:00:00]} h4 {[%emt 0:00:04][%cal Bh5h4,Bh4g3,Bg3f2][%mdl 32]} 38. Qb7 {[%emt 0:00:59]} hxg3+ {[%emt 0:00:06]} 39. Kg2 {[%emt 0:00:01]} gxf2 {[%emt 0:00:36]} 40. Qxe4+ {[%emt 0:00:02]} Kf7 {[%emt 0:00:24]} 41. Qb7+ {[%emt 0:00:16]} Ke6 {[%emt 0:00:03] And now ...Qd5+ would win.} 42. Qc8+ {[%emt 0:00:21]} Ke7 {[%emt 0:00:03]} 43. Qc2 {[%emt 0:00:34]} Qd5+ {[%emt 0:00:10]} 44. Kxf2 {[%emt 0:00:05]} Qxa5 {[%emt 0:00:01]} 45. Qe4+ {[%emt 0:00:03]} Kd6 {[%emt 0:00:06]} (45... Qe5 $5 {[%cal Re5e4]} 46. Qb7+ Ke8 47. Qxa6 Kf7 $11) 46. Qd4+ {[%emt 0:00:03]} Ke6 {[%emt 0:00:01] ...Qf5+ would be deadly.} 47. Qe4+ {[%emt 0:00:02] [#]} (47. Qc4+ $1 $11 Ke7 48. Qe4+ Kf8 49. Qe6) 47... Kd6 {[%emt 0:00:03]} (47... Qe5 $1 $17 {[%cal Re5e4]} 48. Qc6+ Kf7 49. Qb7+ Kg6) 48. Qd4+ {[%emt 0:00:06]} Ke6 {[%emt 0:00:02]} (48... Ke7 $11) 49. Qe4+ $17 {[%emt 0:00:01] [#]} Kd6 {[%emt 0:00:04] Weighted Error Value: White=0.11 (very precise) /Black=0.07 (flawless)} ({Black should play} 49... Qe5 $1 $17 {[%cal Re5e4]} 50. Qb7 Qf5+ 51. Kg1 Qb5 52. Qc8+ Kf7) 1/2-1/2